bitfinex/quotes_SOLUSD_20251019
["timestamp","ask_amount","ask_price","bid_price","bid_amount"]
[1760838880342,101.7,186.06,186.05,22.25999877]
[1760838880548,101.7,186.06,186.05,25.60043303]
[1760838881632,101.7,186.06,186.05,22.25999877]
[1760838882547,3.34043426,186.08,186.05,22.25999877]
[1760838882944,3.34043426,186.08,186.05,6.09489922]
[1760838883145,3.34043426,186.08,186.06,16.16248686]
[1760838884260,3.34043426,186.08,186.06,16.83248686]
[1760838884558,3.34043426,186.08,186.06,0.67]
[1760838884963,3.34043426,186.08,186.07,16.16248686]
[1760838885160,4.05043426,186.08,186.07,16.16248686]
[1760838887768,26.93043426,186.08,186.02,0.67]
[1760838888066,3.34043426,186.05,186.02,0.67]
[1760838888267,3.34043426,186.05,186.03,5.37582743]
[1760838891258,3.34043426,186.04,186.03,5.37582743]
[1760838893079,26.93043426,186.04,186.03,5.37582743]
[1760838893372,26.93043426,186.04,186.0,5.37634221]
[1760838893575,3.34043426,186.01,186.0,5.37634221]
[1760838893752,3.34043426,186.01,185.99,0.67]
[1760838893951,3.34043426,186.01,185.99,9.38770146]
[1760838894154,3.34043426,186.02,185.99,9.38770146]
[1760838895375,3.34043426,186.05,186.0,0.67]
[1760838895573,4.05043426,186.06,186.0,17.4547964]
[1760838895773,3.34043426,186.05,186.01,0.67]
[1760838896247,3.34043426,186.05,186.02,16.1668418]
[1760838896448,3.34043426,186.05,186.02,16.8368418]
[1760838898780,0.71,186.06,186.02,16.8368418]
[1760838899073,3.34043426,186.04,186.02,16.8368418]
[1760838899475,3.34043426,186.04,186.02,16.1668418]
[1760838899775,3.34043426,186.04,186.03,0.67]
[1760838899973,3.34043426,186.05,186.03,0.67]
[1760838900575,125.29,186.07,186.03,0.67]
[1760838900576,3.34043426,186.04,186.03,16.16597063]
[1760838901069,4.05043426,186.04,186.0,0.67]
[1760838901371,3.34043426,186.02,186.01,16.16597063]
[1760838901766,4.05043426,186.02,185.97,0.67]
[1760838901969,3.34043426,185.99,185.98,16.16597063]
[1760838902155,4.05043426,185.99,185.98,16.16597063]
[1760838902363,3.34043426,185.99,185.96,0.67]
[1760838902562,3.34043426,185.99,185.97,16.83597063]
[1760838902873,0.71,186.01,185.97,16.16597063]
[1760838902874,3.34043426,186.0,185.97,16.16597063]
[1760838903058,3.34043426,186.0,185.98,0.67]
[1760838903249,3.34043426,186.0,185.99,0.67]
[1760838903450,3.34043426,186.0,185.98,0.67]
[1760838903656,3.34043426,186.02,185.98,0.67]
[1760838903855,3.34043426,186.02,185.99,16.16597063]
[1760838904057,3.34043426,186.04,186.0,0.67]
[1760838904557,26.22043426,186.04,186.0,0.67]
[1760838905576,3.34043426,186.01,185.99,16.16597063]
[1760838905781,3.34043426,186.0,185.99,16.16597063]
[1760838906377,0.71,186.03,185.99,16.83597063]
[1760838906586,3.34043426,186.01,185.99,16.16597063]
[1760838907584,3.34043426,186.01,185.98,0.67]
[1760838907769,22.88,186.04,185.99,0.67]
[1760838907957,26.22043426,186.04,185.99,0.67]
[1760838908367,3.34043426,186.02,185.99,0.67]
[1760838908985,3.34043426,186.01,185.99,0.67]
[1760838912281,0.67,186.03,185.99,0.67]
[1760838912479,3.34043426,186.01,185.98,5.3768973]
[1760838912697,3.34043426,186.01,185.98,6.0468973]
[1760838914482,3.34043426,186.01,185.99,0.68]
[1760838917794,3.34043426,186.01,185.97,21.54316333]
[1760838918079,3.34043426,186.01,185.98,0.68]
[1760838920295,4.01043426,186.01,185.98,0.68]
[1760838920890,3.34043426,186.01,185.98,0.68]
[1760838921588,3.34043426,186.0,185.98,0.68]
[1760838921994,0.67,185.99,185.97,16.16597063]
[1760838922165,4.01043426,185.99,185.97,16.16597063]
[1760838922366,4.01043426,185.99,185.96,5.37748356]
[1760838922567,3.34043426,185.98,185.96,21.54345419]
[1760838923165,4.01043426,185.99,185.95,6.05776664]
[1760838923366,3.34043426,185.99,185.96,0.68]
[1760838924094,3.34043426,185.98,185.96,0.68]
[1760838924594,3.34043426,185.99,185.96,0.68]
[1760838924896,3.34043426,185.99,185.96,4.02043426]
[1760838927290,3.34043426,185.98,185.96,3.34043426]
[1760838927493,3.34043426,185.98,185.94,5.37804769]
[1760838927796,3.34043426,185.98,185.95,6.05804769]
[1760838931500,0.67,185.99,185.95,6.05804769]
[1760838931797,3.34043426,185.98,185.95,6.05804769]
[1760838934396,3.34043426,185.98,185.95,5.37804769]
[1760838934580,3.34043426,185.98,185.96,0.68]
[1760838935197,3.34043426,185.98,185.95,5.37804769]
[1760838935393,3.34043426,185.98,185.95,6.05804769]
[1760838936203,3.34043426,185.98,185.96,0.68]
[1760838937582,3.34043426,185.98,185.95,6.05804769]
[1760838937786,3.34043426,185.98,185.95,5.37804769]
[1760838938081,3.34043426,185.98,185.96,0.68]
[1760838939389,3.34043426,185.98,185.95,6.05804769]
[1760838939587,3.34043426,185.98,185.96,0.68]
[1760838942187,4.01043426,185.98,185.95,5.37804769]
[1760838942382,0.67,185.97,185.95,5.37804769]
[1760838942822,3.34043426,185.97,185.95,5.37804769]
[1760838943418,4.01043426,185.96,185.95,5.37804769]
[1760838943717,3.34043426,185.96,185.95,5.37804769]
[1760838944285,0.7,185.98,185.95,6.05804769]
[1760838944490,3.34043426,185.97,185.96,0.68]
[1760838945419,3.34043426,185.97,185.95,6.05804769]
[1760838945618,3.34043426,185.97,185.96,0.68]
[1760838946108,3.34043426,185.98,185.96,0.68]
[1760838947123,3.34043426,185.98,185.95,6.05804769]
[1760838948028,4.04043426,185.98,185.95,6.05804769]
[1760838950332,3.34043426,185.98,185.95,6.05804769]
[1760838950630,3.34043426,185.97,185.95,6.05804769]
[1760838951421,3.34043426,185.98,185.96,0.68]
[1760838952329,101.7,186.05,185.97,14.7546306]
[1760838952506,3.34043426,186.07,186.02,3.34043426]
[1760838952835,3.34043426,186.06,186.03,0.68]
[1760838953311,3.34043426,186.06,186.04,10.87647521]
[1760838953510,3.34043426,186.06,186.04,11.55647521]
[1760838953813,3.34043426,186.07,186.04,0.68]
[1760838954331,3.34043426,186.07,186.05,11.55647521]
[1760838954930,4.04043426,186.07,186.05,11.55647521]
[1760838955634,3.34043426,186.07,186.05,11.55647521]
[1760838955813,3.34043426,186.07,186.05,12.23647521]
[1760838956012,3.34043426,186.07,186.05,11.55647521]
[1760838956839,3.34043426,186.08,186.05,11.55647521]
[1760838957008,4.04043426,186.08,186.05,11.55647521]
[1760838957926,101.7,186.08,186.06,0.68]
[1760838960629,102.4,186.15,186.07,0.68]
[1760838960830,105.04043426,186.15,186.09,3.34043426]
[1760838961040,101.7,186.15,186.1,4.02043426]
[1760838961217,3.34043426,186.14,186.08,3.34043426]
[1760838961525,105.04043426,186.15,186.11,11.55647521]
[1760838961738,105.74043426,186.15,186.11,11.55647521]
[1760838962035,105.04043426,186.15,186.12,0.68]
[1760838962518,101.7,186.15,186.12,0.68]
[1760838962835,101.7,186.15,186.12,12.23647521]
[1760838964323,101.7,186.2,186.15,10.87647521]
[1760838964634,0.7,186.24,186.13,12.09373411]
[1760838964635,0.7,186.24,186.19,3.34043426]
[1760838964836,23.58,186.24,186.2,0.68]
[1760838965129,3.34043426,186.21,186.18,3.44043426]
[1760838965307,3.34043426,186.19,186.12,9.3932359]
[1760838965504,3.34043426,186.18,186.13,0.68]
[1760838965704,3.34043426,186.18,186.16,3.44043426]
[1760838965907,3.34043426,186.18,186.14,0.68]
[1760838966127,4.04043426,186.17,186.13,8.7132359]
[1760838966322,3.34043426,186.17,186.14,0.68]
[1760838967025,26.22043426,186.2,186.15,0.68]
[1760838967230,3.34043426,186.21,186.15,4.02043426]
[1760838967538,3.34043426,186.22,186.16,4.05043426]
[1760838967723,3.34043426,186.22,186.17,0.71]
[1760838968028,4.00043426,186.22,186.18,0.71]
[1760838968430,4.00043426,186.22,186.16,4.05043426]
[1760838968732,4.00043426,186.22,186.17,0.71]
[1760838968939,3.34043426,186.22,186.17,0.71]
[1760838969909,3.34043426,186.22,186.16,8.71210773]
[1760838970134,3.34043426,186.22,186.17,0.71]
[1760838970337,3.34043426,186.2,186.14,1.24723004]
[1760838970525,3.34043426,186.2,186.15,0.71]
[1760838970726,4.00043426,186.2,186.16,0.71]
[1760838971419,3.34043426,186.2,186.14,8.7127292]
[1760838971622,4.00043426,186.2,186.15,0.71]
[1760838971834,4.00043426,186.2,186.16,0.71]
[1760838972022,0.66,186.19,186.14,9.4227292]
[1760838972222,4.00043426,186.19,186.14,6.08229494]
[1760838972422,3.34043426,186.19,186.15,0.71]
[1760838974023,102.38,186.2,186.15,0.71]
[1760838974219,105.04043426,186.2,186.16,0.65]
[1760838974429,105.72043426,186.2,186.16,0.65]
[1760838975241,105.04043426,186.2,186.16,0.65]
[1760838975536,0.68,186.19,186.14,9.3627292]
[1760838975739,3.34043426,186.19,186.13,8.71301647]
[1760838975921,3.34043426,186.19,186.12,0.53728777]
[1760838975922,4.02043426,186.18,186.12,8.71330082]
[1760838976123,4.02043426,186.17,186.12,6.02286656]
[1760838976326,3.34043426,186.17,186.12,6.02286656]
[1760838976522,4.02043426,186.17,186.12,0.65]
[1760838976725,0.68,186.16,186.12,0.65]
[1760838977340,101.7,186.2,186.11,8.7135832]
[1760838977341,4.02043426,186.15,186.11,5.37314894]
[1760838977638,4.02043426,186.15,186.11,6.02314894]
[1760838977947,3.34043426,186.15,186.12,0.65]
[1760838978637,102.38,186.2,186.13,0.65]
[1760838978842,3.34043426,186.18,186.13,0.65]
[1760838979047,3.34043426,186.19,186.14,3.34043426]
[1760838979261,3.34043426,186.19,186.15,0.65]
[1760838979442,3.34043426,186.18,186.15,0.65]
[1760838981745,3.34043426,186.19,186.15,5.37198145]
[1760838981946,3.34043426,186.19,186.16,0.65]
[1760838982130,101.7,186.2,186.17,0.65]
[1760838982333,0.78,186.25,186.19,5.37085772]
[1760838982530,3.44043426,186.25,186.2,3.99043426]
[1760838982733,3.44043426,186.25,186.21,0.65]
[1760838983053,0.1,186.25,186.22,0.65]
[1760838983254,0.1,186.25,186.23,0.65]
[1760838983425,3.44043426,186.25,186.21,0.65]
[1760838983943,3.44043426,186.25,186.22,0.65]
[1760838984140,0.1,186.25,186.22,0.65]
[1760838984558,3.44043426,186.25,186.21,5.37015417]
[1760838984756,3.44043426,186.25,186.21,6.02015417]
[1760838984956,4.12043426,186.25,186.21,6.02015417]
[1760838986636,3.44043426,186.25,186.21,6.02015417]
[1760838987040,4.12043426,186.25,186.21,6.02015417]
[1760838987753,0.1,186.25,186.22,0.65]
[1760838988237,0.1,186.25,186.21,3.34043426]
[1760838988433,0.1,186.25,186.22,0.65]
[1760838988651,0.1,186.25,186.21,3.34043426]
[1760838988829,3.44043426,186.25,186.19,5.90789614]
[1760838989034,4.02043426,186.24,186.19,5.37081037]
[1760838989265,4.02043426,186.24,186.19,6.02081037]
[1760838989557,4.02043426,186.24,186.2,0.65]
[1760838990459,4.02043426,186.24,186.19,9.36124463]
[1760838990859,0.68,186.24,186.19,9.36124463]
[1760838991041,0.68,186.24,186.2,0.65]
[1760838993158,0.68,186.24,186.17,0.53714347]
[1760838993159,3.34043426,186.22,186.16,3.99043426]
[1760838993362,4.02043426,186.22,186.17,0.65]
[1760838993664,4.02043426,186.22,186.18,0.65]
[1760838995252,3.34043426,186.21,186.16,0.65]
[1760838995565,4.02043426,186.2,186.16,0.65]
[1760838996462,3.34043426,186.2,186.17,0.65]
[1760838997338,4.02043426,186.2,186.15,6.02173062]
[1760838999042,3.34043426,186.2,186.16,0.65]
[1760838999257,4.02043426,186.2,186.16,0.65]
[1760838999844,3.34043426,186.21,186.17,0.65]
[1760839000046,3.34043426,186.21,186.16,3.34043426]
[1760839000250,4.02043426,186.21,186.17,0.65]
[1760839000543,101.7,186.2,186.17,0.65]
[1760839002968,101.7,186.2,186.19,3.34043426]
[1760839003163,101.7,186.24,186.19,3.99043426]
[1760839003361,101.7,186.24,186.2,3.99043426]
[1760839003546,101.7,186.24,186.21,0.72]
[1760839004056,4.00043426,186.23,186.19,0.72]
[1760839006264,3.34043426,186.22,186.19,0.72]
[1760839006467,3.34043426,186.22,186.19,6.09082022]
[1760839007666,101.7,186.24,186.19,5.37082022]
[1760839007876,105.04043426,186.24,186.2,0.72]
[1760839008069,3.34043426,186.22,186.17,21.52070291]
[1760839008254,0.66,186.23,186.18,1.25711462]
[1760839008255,3.34043426,186.23,186.18,1.25711462]
[1760839008453,3.34043426,186.23,186.19,0.72]
[1760839008678,4.00043426,186.23,186.19,0.72]
[1760839009747,3.34043426,186.22,186.19,0.72]
[1760839010974,4.00043426,186.22,186.18,5.3708736]
[1760839011161,4.00043426,186.22,186.18,6.0908736]
[1760839011674,101.7,186.24,186.16,16.76969591]
[1760839011675,4.00043426,186.21,186.17,5.37140986]
[1760839011852,3.34043426,186.18,186.08,0.72]
[1760839012049,3.34043426,186.13,186.08,0.72]
[1760839012277,3.34043426,186.13,186.09,0.72]
[1760839012278,3.34043426,186.12,186.09,0.72]
[1760839012463,3.34043426,186.12,186.07,16.97078242]
[1760839012663,3.34043426,186.12,186.08,0.72]
[1760839012980,4.00043426,186.12,186.08,0.72]
[1760839013952,3.34043426,186.11,186.07,5.37430721]
[1760839014284,4.00043426,186.11,186.07,5.37430721]
[1760839014471,4.00043426,186.11,186.06,6.09459279]
[1760839014868,0.66,186.11,186.06,5.37459279]
[1760839015056,4.00043426,186.11,186.07,0.72]
[1760839015767,3.34043426,186.1,186.06,5.37459279]
[1760839016076,4.00043426,186.09,186.04,6.09518361]
[1760839016385,4.00043426,186.08,186.04,6.09518361]
[1760839016565,4.00043426,186.08,186.04,0.72]
[1760839017074,3.34043426,186.06,186.02,6.09573702]
[1760839017574,4.00043426,186.07,186.02,6.09573702]
[1760839017781,3.34043426,186.07,186.03,0.72]
[1760839017951,4.00043426,186.08,186.03,0.72]
[1760839018365,0.66,186.07,186.03,0.72]
[1760839018961,3.34043426,186.11,186.05,3.34043426]
[1760839019163,26.88043426,186.13,186.06,4.06043426]
[1760839019469,4.00043426,186.13,186.07,4.06043426]
[1760839019677,4.00043426,186.13,186.08,0.72]
[1760839019976,4.00043426,186.13,186.09,0.72]
[1760839020873,22.88,186.17,186.1,4.06043426]
[1760839020874,0.66,186.17,186.1,4.06043426]
[1760839021058,0.66,186.17,186.11,3.34043426]
[1760839021059,4.00043426,186.17,186.11,3.34043426]
[1760839021374,4.00043426,186.17,186.1,4.06043426]
[1760839022067,4.00043426,186.17,186.1,9.43365199]
[1760839022578,4.00043426,186.17,186.11,0.72]
[1760839024303,101.7,186.16,186.11,0.72]
[1760839024468,102.36,186.16,186.11,0.72]
[1760839024670,4.00043426,186.15,186.09,6.09363185]
[1760839024974,0.66,186.14,186.09,6.09363185]
[1760839025177,0.66,186.13,186.09,6.09363185]
[1760839025475,102.36,186.13,186.09,6.09363185]
[1760839027873,0.66,186.12,186.08,5.37403267]
[1760839028269,0.66,186.12,186.08,6.06403267]
[1760839030578,105.04043426,186.13,186.09,0.69]
[1760839030776,102.4,186.13,186.09,0.69]
[1760839031681,102.4,186.13,186.08,5.37403267]
[1760839031863,102.4,186.13,186.08,6.06403267]
[1760839032681,105.74043426,186.13,186.08,6.06403267]
[1760839032884,0.7,186.12,186.08,6.06403267]
[1760839033077,0.7,186.12,186.11,22.88]
[1760839034080,0.7,186.12,186.09,28.25370991]
[1760839035284,0.71,186.12,186.09,22.88]
[1760839035874,101.7,186.11,186.08,5.37397336]
[1760839036092,101.7,186.11,186.08,6.03397336]
[1760839040588,102.41,186.11,186.07,6.03432149]
[1760839042081,101.7,186.11,186.07,5.37432149]
[1760839042293,0.71,186.1,186.07,5.37432149]
[1760839043508,105.04043426,186.11,186.07,0.66]
[1760839043801,105.75043426,186.11,186.07,0.66]
[1760839045378,105.75043426,186.11,186.07,6.03430038]
[1760839045575,105.04043426,186.11,186.07,6.03430038]
[1760839045775,0.71,186.1,186.07,6.03430038]
[1760839046075,0.71,186.1,186.07,5.37430038]
[1760839047095,3.34043426,186.1,186.06,6.03457343]
[1760839047293,0.71,186.09,186.06,5.37457343]
[1760839047479,4.05043426,186.09,186.06,5.37457343]
[1760839048079,4.05043426,186.09,186.04,4.00043426]
[1760839048080,4.05043426,186.08,186.04,0.66]
[1760839048477,0.71,186.07,186.03,5.37547707]
[1760839048676,0.71,186.07,186.03,6.03547707]
[1760839048892,4.05043426,186.07,186.03,6.03547707]
[1760839049193,0.71,186.06,186.02,5.37574027]
[1760839049394,0.71,186.06,186.02,6.03574027]
[1760839049592,4.05043426,186.06,186.02,6.03574027]
[1760839051006,4.05043426,186.07,186.03,0.66]
[1760839051379,3.34043426,186.07,186.01,5.37605505]
[1760839051579,4.05043426,186.07,186.03,0.66]
[1760839052511,0.71,186.06,186.03,0.66]
[1760839053517,4.05043426,186.07,186.03,6.03546203]
[1760839055587,3.34043426,186.06,186.03,6.03546203]
[1760839058204,4.05043426,186.06,186.03,6.03546203]
[1760839058895,3.34043426,186.06,186.03,6.03546203]
[1760839062316,3.34043426,186.06,186.03,0.66]
[1760839063394,3.34043426,186.06,186.03,6.03543193]
[1760839064086,3.34043426,186.06,186.01,3.34043426]
[1760839064087,101.7,186.05,186.01,5.37582929]
[1760839064288,101.7,186.05,186.02,0.67]
[1760839064786,102.39,186.05,186.02,0.67]
[1760839066891,101.7,186.05,186.02,0.67]
[1760839068006,101.7,186.05,186.03,0.67]
[1760839074719,101.7,186.05,186.01,5.37605505]
[1760839074913,101.7,186.05,186.02,0.67]
[1760839076210,102.39,186.05,186.02,0.67]
[1760839080225,102.39,186.05,186.01,5.37605505]
[1760839080422,102.39,186.05,186.01,6.04605505]
[1760839081107,102.39,186.05,186.02,0.67]
[1760839083909,101.7,186.05,186.01,6.04605505]
[1760839084410,0.69,186.04,186.01,6.04605505]
[1760839084610,102.39,186.05,186.01,6.04605505]
[1760839086024,0.69,186.04,186.01,6.04605505]
[1760839086327,0.69,186.04,186.01,5.37605505]
[1760839087833,0.69,186.04,186.01,0.69]
[1760839088424,0.69,186.04,186.02,5.37634408]
[1760839090226,0.67,186.03,186.02,5.37634408]
[1760839092131,4.01043426,186.04,186.02,5.37634408]
[1760839094529,4.00043426,186.03,186.02,5.37634408]
[1760839101348,3.34043426,186.03,186.02,5.37634408]
[1760839105450,4.00043426,186.03,186.02,5.37634408]
[1760839105644,3.34043426,186.03,186.02,5.37634408]
[1760839109460,3.34043426,186.03,186.02,4.87634408]
[1760839109859,22.88,186.08,186.02,5.59634408]
[1760839110158,3.34043426,186.06,186.03,0.72]
[1760839110457,3.34043426,186.06,186.04,0.72]
[1760839111151,3.34043426,186.06,186.05,13.4416052]
[1760839127876,3.34043426,186.06,186.05,14.1216052]
[1760839131865,3.34043426,186.07,186.05,14.1216052]
[1760839132260,3.34043426,186.07,186.05,0.68]
[1760839132571,3.34043426,186.07,186.06,14.1216052]
[1760839136081,0.67,186.13,186.06,14.8016052]
[1760839136387,3.34043426,186.1,186.07,0.68]
[1760839136754,3.34043426,186.1,186.07,6.67206071]
[1760839136963,26.22043426,186.11,186.08,0.68]
[1760839137166,3.34043426,186.11,186.08,0.68]
[1760839137364,3.34043426,186.11,186.09,5.99206071]
[1760839137775,3.34043426,186.11,186.09,6.67206071]
[1760839138281,3.34043426,186.11,186.09,0.68]
[1760839138584,3.34043426,186.11,186.1,6.67206071]
[1760839140862,3.34043426,186.11,186.1,7.35206071]
[1760839141069,3.34043426,186.13,186.1,7.35206071]
[1760839141270,3.34043426,186.15,186.11,0.68]
[1760839141785,26.22043426,186.15,186.12,8.71407617]
[1760839142176,26.22043426,186.15,186.13,0.68]
[1760839142369,3.34043426,186.15,186.14,0.68]
[1760839142866,3.34043426,186.15,186.14,9.39407617]
[1760839143184,33.75647521,186.2,186.14,9.39407617]
[1760839143185,3.34043426,186.16,186.14,9.39407617]
[1760839143486,3.34043426,186.16,186.15,0.68]
[1760839143877,3.34043426,186.16,186.15,10.07407617]
[1760839144482,3.34043426,186.16,186.15,9.39407617]
[1760839145477,26.89043426,186.16,186.15,9.39407617]
[1760839145884,26.22043426,186.16,186.15,9.39407617]
[1760839146265,3.34043426,186.16,186.15,9.39407617]
[1760839147272,3.34043426,186.16,186.15,10.07407617]
[1760839148094,3.34043426,186.16,186.15,9.39407617]
[1760839148295,3.34043426,186.16,186.14,0.68]
[1760839148478,3.34043426,186.15,186.14,9.39407617]
[1760839148796,3.34043426,186.15,186.13,0.7]
[1760839149094,3.34043426,186.14,186.12,10.87647521]
[1760839149277,102.1,186.15,186.06,3.34043426]
[1760839149278,26.22043426,186.13,186.06,3.34043426]
[1760839149477,105.44043426,186.12,186.06,8.7150446]
[1760839149689,105.44043426,186.12,186.06,24.87579014]
[1760839149878,105.44043426,186.12,186.07,0.7]
[1760839150387,102.1,186.12,186.07,4.04043426]
[1760839150895,102.1,186.12,186.08,6.07386943]
[1760839151086,102.1,186.12,186.09,0.7]
[1760839151599,102.1,186.12,186.1,5.37386943]
[1760839151782,102.1,186.12,186.11,0.7]
[1760839153173,102.1,186.12,186.11,6.07386943]
[1760839154085,105.44043426,186.12,186.11,6.07386943]
[1760839155471,102.1,186.12,186.11,6.07386943]
[1760839155670,102.1,186.12,186.11,11.44703583]
[1760839155893,3.34043426,186.16,186.11,11.44703583]
[1760839156095,105.44043426,186.17,186.12,0.7]
[1760839156480,105.44043426,186.17,186.13,14.08747009]
[1760839156674,105.44043426,186.17,186.14,0.7]
[1760839157293,105.44043426,186.17,186.15,14.08747009]
[1760839157479,105.44043426,186.17,186.16,0.7]
[1760839158678,22.88,186.2,186.16,14.78747009]
[1760839158882,3.34043426,186.2,186.17,0.7]
[1760839159202,3.34043426,186.2,186.18,0.7]
[1760839159500,3.34043426,186.19,186.18,14.78747009]
[1760839160381,3.34043426,186.19,186.18,14.08747009]
[1760839160582,3.34043426,186.2,186.18,14.08747009]
[1760839161281,3.34043426,186.2,186.18,14.78747009]
[1760839161602,3.34043426,186.2,186.18,0.7]
[1760839161912,3.34043426,186.2,186.19,16.15378402]
[1760839162279,3.34043426,186.2,186.19,16.85378402]
[1760839162474,3.34043426,186.21,186.19,16.85378402]
[1760839162899,3.34043426,186.21,186.19,0.7]
[1760839163102,26.22043426,186.21,186.2,16.15204457]
[1760839164701,26.88043426,186.21,186.16,0.7]
[1760839164901,3.34043426,186.19,186.18,16.15204457]
[1760839168100,3.34043426,186.19,186.16,0.7]
[1760839168301,3.34043426,186.18,186.16,0.7]
[1760839168492,3.34043426,186.18,186.17,16.15204457]
[1760839168892,4.00043426,186.18,186.14,0.7]
[1760839169095,105.44043426,186.17,186.15,0.7]
[1760839169298,102.1,186.17,186.16,16.15204457]
[1760839169597,102.1,186.17,186.16,16.85204457]
[1760839174710,102.1,186.17,186.16,22.22376781]
[1760839177312,102.1,186.17,186.16,16.85204457]
[1760839183507,102.1,186.17,186.16,16.15204457]
[1760839183922,105.44043426,186.17,186.16,16.15204457]
[1760839184222,106.15043426,186.17,186.16,16.15204457]
[1760839184526,105.44043426,186.17,186.16,16.15204457]
[1760839185115,102.1,186.17,186.16,16.15204457]
[1760839191421,102.1,186.17,186.16,16.85204457]
[1760839191720,102.1,186.17,186.16,16.15204457]
[1760839193932,102.1,186.17,186.16,16.85204457]
[1760839195521,102.1,186.24,186.17,10.87647521]
[1760839195726,102.1,186.24,186.19,3.34043426]
[1760839196030,102.1,186.24,186.2,0.7]
[1760839196210,102.81,186.24,186.2,10.87647521]
[1760839196413,102.81,186.24,186.21,0.7]
[1760839197038,102.81,186.24,186.22,10.87647521]
[1760839197337,106.15043426,186.24,186.22,10.87647521]
[1760839200138,105.44043426,186.24,186.22,10.87647521]
[1760839200330,102.1,186.24,186.23,0.7]
[1760839200534,0.1,186.25,186.23,0.7]
[1760839200932,0.1,186.25,186.24,16.8476976]
[1760839201336,0.1,186.25,186.24,16.1476976]
[1760839202018,3.44043426,186.25,186.24,16.1476976]
[1760839202220,4.15043426,186.25,186.24,16.1476976]
[1760839202631,4.15043426,186.25,186.2,5.37050814]
[1760839202839,4.05043426,186.24,186.2,22.21820574]
[1760839203339,3.34043426,186.23,186.2,16.8476976]
[1760839203528,4.05043426,186.23,186.2,22.21824353]
[1760839203947,3.34043426,186.23,186.2,6.07054593]
[1760839204127,3.34043426,186.23,186.21,16.1503055]
[1760839204543,105.44043426,186.23,186.21,16.1503055]
[1760839204945,102.81,186.22,186.21,16.1503055]
[1760839205131,102.1,186.22,186.21,16.1503055]
[1760839207028,106.15043426,186.22,186.16,0.7]
[1760839207348,3.34043426,186.18,186.16,0.7]
[1760839207545,3.34043426,186.18,186.17,16.15378402]
[1760839208132,4.06043426,186.18,186.17,16.15378402]
[1760839208551,4.06043426,186.18,186.14,0.71]
[1760839208748,3.34043426,186.15,186.12,16.86552384]
[1760839209137,3.34043426,186.15,186.13,0.71]
[1760839209457,3.34043426,186.15,186.14,0.71]
[1760839209658,4.06043426,186.15,186.12,16.15552384]
[1760839209954,3.34043426,186.14,186.12,16.15552384]
[1760839210957,22.88,186.19,186.09,10.87647521]
[1760839210958,4.06043426,186.13,186.09,0.71]
[1760839211152,3.34043426,186.1,186.07,0.71]
[1760839211347,0.72,186.12,186.09,16.15552384]
[1760839211560,3.34043426,186.1,186.07,0.71]
[1760839211746,3.34043426,186.09,186.08,16.15552384]
[1760839211957,3.34043426,186.1,186.08,16.15552384]
[1760839212463,4.06043426,186.1,186.08,16.15552384]
[1760839212974,3.34043426,186.1,186.08,16.15552384]
[1760839213153,102.1,186.15,186.09,0.71]
[1760839213355,102.1,186.14,186.09,4.05043426]
[1760839213560,102.1,186.14,186.08,22.06692796]
[1760839213561,102.1,186.14,186.11,22.88]
[1760839213762,102.1,186.14,186.12,0.69]
[1760839213961,102.1,186.14,186.13,0.69]
[1760839214373,106.12043426,186.14,186.13,16.15726403]
[1760839214575,105.44043426,186.14,186.13,16.15726403]
[1760839215080,106.12043426,186.14,186.13,16.15726403]
[1760839215272,106.12043426,186.14,186.11,28.25314589]
[1760839215468,3.34043426,186.13,186.12,16.15813427]
[1760839216167,102.78,186.14,186.12,16.15813427]
[1760839216168,102.1,186.14,186.12,16.84813427]
[1760839216480,102.1,186.14,186.13,0.69]
[1760839216677,102.1,186.23,186.14,10.87647521]
[1760839216880,105.44043426,186.23,186.17,3.34043426]
[1760839217081,3.34043426,186.2,186.15,0.53720118]
[1760839217385,4.02043426,186.2,186.16,0.69]
[1760839217579,4.02043426,186.2,186.16,16.84378402]
[1760839217886,3.34043426,186.19,186.16,16.84378402]
[1760839218375,4.02043426,186.2,186.16,16.84378402]